Cogmind - Beta 9.3 *** ADVENTURER MODE // 2020.01.03 @ 19:19:14 // Winter2019/RPGLIKE Player: BW-032 Result: Destroyed by Y-72 Warden with Quantum Rifle Performance ------------- Evolutions (7) 3500 Regions Visited (21) 4200 Robots Destroyed (267) 1335 Value Destroyed (14028) 14028 Prototype IDs (50) 1000 Alien Tech Used (0) 0 Bonus (7353) 7353 TOTAL SCORE: 31416 Bonus ------- High Alert Combat Kills 2864 Follower Combat Kills 2253 Entered Garrisons 1000 Used RIF Installer 2500 Built Enhanced Grunts 300 A7 Reached Mainframe 300 Met R17 at Cetus 500 Friendly Fire -2364 Cogmind --------- Core Integrity 0/1450 Matter 1/500 Energy 436/440 System Corruption 0% Temperature Cool (13) Movement Flying (28) Location -3/Research Parts ------- > --- POWER (2) -------- Micro Fission Core Light Antimatter Reactor > --- PROPULSION (5) --- Cooled VTOL Module Cooled VTOL Module Nuclear Pulse Array Impulse Thruster > --- UTILITY (7) ------ Advanced Signal Interpreter Long-range Terrain Scanner Advanced Hacking Suite Improved System Shield Relay Coupler [Swarmer] (38) Relay Coupler [Grunt] (58) > --- WEAPON (3) ------- Antimatter Cannon Scatter Rocket Array Power Sword > --- INVENTORY (5) ---- Improved Powered Armor Relay Coupler [NC] (124) Relay Coupler [Sentry] (92) Fusion Bomb Launcher Improved Remote Datajack Peak State ------------ > --- POWER ------------ Micro Fission Core Light Antimatter Reactor > --- PROPULSION ------- Cooled VTOL Module Cooled VTOL Module Nuclear Pulse Array Impulse Thruster > --- UTILITY ---------- Improved Signal Interpreter Improved Powered Armor Antimissile System Advanced Hacking Suite Improved System Shield Relay Coupler [Swarmer] Relay Coupler [Grunt] > --- WEAPON ----------- Antimatter Cannon Scatter Rocket Array Power Sword > --- INVENTORY -------- Relay Coupler [NC] Relay Coupler [Sentry] Improved Remote Datajack [Rating: 93] Favorites ----------- Power Light Angular Momentum Engine Engine Light Angular Momentum Engine Power Core Micro Fission Core Reactor Light Antimatter Reactor Propulsion Cooled VTOL Module Leg Armored Leg Wheel Wheel Hover Unit Improved Hover Unit Flight Unit Cooled VTOL Module Utility Relay Coupler [Demolisher] Device Improved Terrain Scanner Processor Signal Interpreter Hackware Relay Coupler [Demolisher] Protection Improved Powered Armor Weapon Power Sword Energy Gun Improved Heavy Laser Energy Cannon Beam Cannon Ballistic Gun Improved Assault Rifle Ballistic Cannon Antimatter Cannon Launcher Scatter Rocket Array Special Weapon Remote Datajack Impact Weapon Powered Hammer Slashing Weapon Power Sword Piercing Weapon Heavy Pick Special Melee Weapon Improved Datajack Build | -11 -10 -9 -9 -9 -9 -7 -7 -6 -6 -6 -5 -5 -5 -5 -5 -5 -5 -5 -4 -4 -3 ------- Run | Scr Mat Mat Sto Gar Rec Fac Gar Fac Low Low Fac Gar Fac Ext Cet Arc Hub Gar Fac Gar Res Slots Evolved 13 | . . 4 . 2 . 3 1 1 . . . 1 1 . . . . . . . . Power 1 | . . . . . . 1 . . . . . . . . . . . . . . . Propulsion 4 | . . 1 . 1 . . . 1 . . . . 1 . . . . . . . . Utility 6 | . . 2 . 1 . 1 1 . . . . 1 . . . . . . . . . Weapon 2 | . . 1 . . . 1 . . . . . . . . . . . . . . . Parts Attached 189 | 4 5 25 22 3 . 12 11 32 9 . 3 10 11 5 8 . . 7 2 2 18 Power 14 | 1 . 4 1 . . 2 1 1 . . . . 1 1 . . . . 1 . 1 Engine 10 | 1 . 4 1 . . 2 . 1 . . . . . 1 . . . . . . . Core 2 | . . . . . . . 1 . . . . . 1 . . . . . . . . Reactor 2 | . . . . . . . . . . . . . . . . . . . 1 . 1 Propulsion 25 | 1 1 2 4 1 . . . 2 . . . 1 6 . 4 . . . 1 . 2 Treads . | . . . . . . . . . . . . . . . . . . . . . . Leg 1 | . . . . . . . . . . . . . 1 . . . . . . . . Wheel 1 | 1 . . . . . . . . . . . . . . . . . . . . . Hover 3 | . . 1 1 . . . . . . . . . . . . . . . . . 1 Flight 20 | . 1 1 3 1 . . . 2 . . . 1 5 . 4 . . . 1 . 1 Utility 71 | 1 . 5 2 1 . 3 6 19 7 . 3 3 4 2 4 . . 4 . 1 6 Device 44 | 1 . 3 2 . . 2 4 15 4 . 2 1 3 1 2 . . . . . 4 Storage . | . . . . . . . . . . . . . . . . . . . . . . Processor 7 | . . 2 . . . . . 2 . . 1 . 1 . . . . . . . 1 Hackware 13 | . . . . 1 . 1 2 2 1 . . 1 . . 2 . . 3 . . . Protection 7 | . . . . . . . . . 2 . . 1 . 1 . . . 1 . 1 1 Artifact . | . . . . . . . . . . . . . . . . . . . . . . Weapon 79 | 1 4 14 15 1 . 7 4 10 2 . . 6 . 2 . . . 3 . 1 9 Energy Gun 10 | 1 . 1 4 1 . . . 1 . . . . . . . . . . . . 2 Energy Cannon 4 | . 2 2 . . . . . . . . . . . . . . . . . . . Ballistic Gun 1 | . . . 1 . . . . . . . . . . . . . . . . . . Ballistic Cannon 3 | . . . . . . . . 1 . . . . . . . . . . . 1 1 Launcher 18 | . 1 4 4 . . 2 . 4 . . . . . . . . . 1 . . 2 Special Weapon 10 | . . 1 . . . . 2 1 1 . . 3 . . . . . 1 . . 1 Impact Weapon 13 | . . . 6 . . 5 1 1 . . . . . . . . . . . . . Slashing Weapon 18 | . 1 6 . . . . . 1 1 . . 3 . 2 . . . 1 . . 3 Piercing Weapon 1 | . . . . . . . . 1 . . . . . . . . . . . . . Special Melee Weapon 1 | . . . . . . . 1 . . . . . . . . . . . . . . Unidentified Prototypes 8 | . . 1 3 . . . . 3 . . . . . . 1 . . . . . . Parts Lost 2 | . . . . . . . . 1 . . . 1 . . . . . . . . . Power . | . . . . . . . . . . . . . . . . . . . . . . Propulsion 1 | . . . . . . . . . . . . 1 . . . . . . . . . Utility 1 | . . . . . . . . 1 . . . . . . . . . . . . . Weapon . | . . . . . . . . . . . . . . . . . . . . . . Highest Loss Streak 1 | . . . . . . . . 1 . . . 1 . . . . . . . . . Average Slot Usage (%) 97 | . 100 93 95 100 100 95 99 99 100 100 100 97 97 94 94 94 94 94 94 94 93 Engine 10 | . 25 16 12 10 10 12 8 12 13 13 13 11 5 5 5 5 5 5 2 . . Core 2 | . . . . . . . 5 . . . . . 5 5 5 5 5 5 5 5 5 Wheel 1 | . 11 . . . . . . . . . . . . . . . . . . . . Hover 1 | . . 3 11 . . . . . . . . . . . . . . . . . . Flight 21 | . 13 16 11 23 30 24 22 25 26 26 26 24 23 23 23 23 23 23 23 23 23 Device 13 | . 25 19 22 22 20 15 13 14 12 6 6 3 5 5 5 5 5 5 5 5 5 Processor 6 | . . 15 12 10 10 7 7 6 6 6 6 6 5 5 5 5 5 5 5 5 5 Hackware 15 | . . . . 9 10 11 16 18 20 26 26 27 24 23 23 23 23 23 23 23 23 Protection 1 | . . . . . . . . . . . . 5 5 5 5 5 5 5 5 5 4 Energy Gun 2 | . . . 1 10 10 7 7 5 . . . . . . . . . . . . 1 Energy Cannon 1 | . 11 . . . . . . . . . . . . . . . . . . . . Ballistic Cannon 2 | . . . . . . . . . 6 6 6 6 5 5 5 5 5 5 5 5 6 Launcher 7 | . 13 6 11 10 10 7 7 5 6 6 6 6 5 5 5 5 5 4 5 5 4 Impact Weapon 1 | . . . 8 . . 7 3 1 . . . . . . . . . . . . . Slashing Weapon 3 | . . 9 . . . . . 2 6 6 6 5 5 5 5 5 5 5 5 5 3 Naked Turns . | . . . . . . . . . . . . . . . . . . . . . . Heaviest Build 58 | 6 7 16 17 19 19 29 32 46 46 40 40 52 47 47 47 47 47 48 50 50 58 Greatest Support 74 | 15 15 18 24 30 30 36 40 54 48 54 48 59 68 72 69 69 73 69 70 70 74 Greatest Overweight (x) 1 | . . . . . . . . . . . . 1 1 . . . . . . . . Average Overweight (x) . | . . . . . . . . . . . . . . . . . . . . . . Largest Inventory Capacity 5 | 1 2 2 2 3 3 3 3 4 4 4 4 4 4 4 4 4 5 5 5 5 5 Average Capacity 3 | . 1 2 2 2 3 3 3 3 4 4 4 4 4 4 4 4 4 5 5 5 5 Most Carried 5 | 1 2 2 2 3 3 3 3 4 4 3 4 3 4 4 4 4 4 5 3 3 5 Average Carried 2 | . 1 1 1 2 3 2 2 3 3 3 3 2 2 3 4 4 4 3 3 3 3 Final Capacity 5 | 1 2 2 2 3 3 3 3 4 4 4 4 4 4 4 4 4 5 5 5 5 5 Final Carried 5 | 1 2 2 2 3 3 3 3 4 3 3 3 3 2 4 4 4 4 3 3 3 5 Class Distribution -------------------- 50% | Hacker-Scout 39% | Wizard-Scout 4% | Mutant 4% | Scout Dominant Class ---------------- Scout | -10/Materials Hacker-Scout | -9/Materials Hacker-Scout | -9/Storage Hacker-Scout | -9/Garrison Hacker-Scout | -9/Recycling Hacker-Scout | -7/Factory Hacker-Scout | -7/Garrison Hacker-Scout | -6/Factory Hacker-Scout | -6/Lower Caves Wizard-Scout | -6/Lower Caves Wizard-Scout | -5/Factory Wizard-Scout | -5/Garrison Wizard-Scout | -5/Factory Wizard-Scout | -5/Extension Wizard-Scout | -5/Cetus Wizard-Scout | -5/Archives Wizard-Scout | -5/Hub_04(d) Wizard-Scout | -5/Garrison Wizard-Scout | -4/Factory Wizard-Scout | -4/Garrison Wizard-Scout | -3/Research Resources | -11 -10 -9 -9 -9 -9 -7 -7 -6 -6 -6 -5 -5 -5 -5 -5 -5 -5 -5 -4 -4 -3 ----------- Run | Scr Mat Mat Sto Gar Rec Fac Gar Fac Low Low Fac Gar Fac Ext Cet Arc Hub Gar Fac Gar Res Matter Collected 7171 | 240 143 507 144 526 60 134 633 384 454 . . 1113 222 502 762 146 4 487 . 526 184 Remotely . | . . . . . . . . . . . . . . . . . . . . . . Salvage Created 7217 | 130 217 482 161 845 81 206 1065 552 300 . . 780 375 724 152 . 99 255 . 539 254 Parts 424 | 9 19 50 18 66 23 13 52 24 3 . . 14 9 43 15 . 10 17 . 20 19 Haulers Intercepted 2 | . . . . . . . . 1 1 . . . . . . . . . . . . Recyclers Shooed 10 | . 2 2 2 . 1 . . . . . . . 3 . . . . . . . . Parts Field Recycled . | . . . . . . . . . . . . . . . . . . . . . . Retrieved Matter . | . . . . . . . . . . . . . . . . . . . . . . Parts Self-Destructed 2 | . . . . . . . . . 2 . . . . . . . . . . . . Prevented . | . . . . . . . . . . . . . . . . . . . . . . Kills | -11 -10 -9 -9 -9 -9 -7 -7 -6 -6 -6 -5 -5 -5 -5 -5 -5 -5 -5 -4 -4 -3 ------- Run | Scr Mat Mat Sto Gar Rec Fac Gar Fac Low Low Fac Gar Fac Ext Cet Arc Hub Gar Fac Gar Res Combat Hostiles Destroyed 212 | . 9 19 7 27 10 5 35 11 5 . . 14 9 24 3 . 2 13 . 14 5 Melee 27 | . . 3 1 . . . 1 1 1 . . 7 4 8 . . . . . . 1 Guns 40 | . . . 3 15 6 1 10 4 . . . . . . . . . . . . 1 Cannons 26 | . 3 1 . . . . . . . . . 2 3 5 3 . 2 4 . 2 1 AOE 114 | . 6 15 3 12 4 4 20 6 4 . . 5 2 11 . . . 9 . 12 1 Classes Destroyed 18 | 2 5 4 . . 1 . 2 3 . . . . . . . . . . . 1 . Worker 5 | . 1 . 1 . . . . 1 . . . . 1 . . . 1 . . . . Builder 6 | . 2 . . . . . . . . . . . . . . . 1 . . . 3 Tunneler 3 | 2 . 1 . . . . . . . . . . . . . . . . . . . Hauler 2 | . . . . . . . . 1 1 . . . . . . . . . . . . Recycler 6 | 1 . . 2 . 1 . . . . . . . 2 . . . . . . . . Operator 11 | . . 2 1 . . 2 . 2 . . . . . 1 . . 1 . . . 2 Drone 14 | . . . . . 10 . 4 . . . . . . . . . . . . . . Watcher 16 | . 3 2 . . . 1 . 5 . . . . 1 2 2 . . . . . . Swarmer 57 | . 3 4 . 7 . . 13 . . . . 9 . 9 1 . . 7 . 4 . Grunt 88 | . 6 11 4 17 . 3 11 6 5 . . . 4 6 . . 1 5 . 7 2 Brawler 5 | . . 1 . . . . 1 . . . . . 2 . 1 . . . . . . Duelist 2 | . . 1 . . . . 1 . . . . . . . . . . . . . . Protector 1 | . . . . . . . . 1 . . . . . . . . . . . . . Sentry 23 | . . 2 3 3 . 2 . 3 . . . 6 1 1 . . 1 . . . 1 Specialist 4 | . . . . . . . 4 . . . . . . . . . . . . . . Hunter 4 | . . . . . . . 1 . . . . . . 1 . . . . . 2 . Programmer 7 | . . . . . . . . 1 . . . . 2 1 . . . 1 . . 2 Behemoth 1 | . . . . . . . . . . . . . . . . . . . . 1 . Cetus Guard 1 | . . . . . . . . . . . . . . . 1 . . . . . . Enhanced Grunt 2 | . . . . . . . . . . . . . . . . . . 2 . . . Thug 4 | . . . . . . . . . . . . . . 3 . . . 1 . . . Savage 2 | . . . . . . . . . . . . . . 2 . . . . . . . Butcher 1 | . . . . . . . . . . . . . . . 1 . . . . . . Guerrilla 2 | . . . . . . . . . . . . . . 1 1 . . . . . . Best Kill Streak 12 | 2 7 8 7 7 8 4 9 5 4 . . 4 9 11 2 . 5 5 . 12 4 Combat Bots Only 12 | . 3 8 5 7 7 3 9 4 4 . . 4 6 10 2 . 2 5 . 12 2 Max Kills in Single Turn 5 | 1 2 4 3 3 2 2 5 3 4 . . 3 4 5 3 . 2 4 . 5 3 Gunslinging . | . . . . . . . . . . . . . . . . . . . . . . Exploded 5 | . 2 4 1 3 2 2 5 3 4 . . 3 2 5 . . . 2 . 5 1 Melee 1 | . . 1 1 . . . 1 1 1 . . 1 1 1 . . . . . . 1 Uniques/NPCs Destroyed . | . . . . . . . . . . . . . . . . . . . . . . Combat | -11 -10 -9 -9 -9 -9 -7 -7 -6 -6 -6 -5 -5 -5 -5 -5 -5 -5 -5 -4 -4 -3 -------- Run | Scr Mat Mat Sto Gar Rec Fac Gar Fac Low Low Fac Gar Fac Ext Cet Arc Hub Gar Fac Gar Res Damage Taken 6636 | . 158 460 329 120 . 169 379 635 31 9 . 1050 145 292 1010 169 40 267 32 760 581 Core 5308 | . 130 392 264 87 . 132 303 499 24 6 . 846 115 225 823 132 31 207 24 608 460 Absorbed by Shields 959 | . . 6 139 55 2 71 112 293 10 . . . . 50 221 . . . . . . Redirected to Core 4196 | . 76 213 168 73 . 104 193 400 24 6 . 691 115 215 613 116 28 207 24 518 412 Core Remaining (%) 78 | 100 98 . . . 100 . 100 . . 77 . . . . . . . 50 . 24 . Volleys Fired 574 | 11 25 29 38 89 24 13 65 40 3 . . 61 18 18 58 14 5 31 . 19 13 Largest 3 | 1 1 1 2 2 2 2 2 2 2 . . 2 2 2 2 1 2 2 . 2 3 Hottest 151 | 50 60 68 70 95 95 101 101 111 90 . . 90 90 90 90 40 90 90 . 90 151 Shots Fired 714 | 11 25 29 42 112 31 23 91 60 4 . . 72 21 22 65 14 7 36 . 23 26 Gun 233 | 11 . . 10 89 19 13 58 30 . . . . . . . . . . . . 3 Cannon 251 | . 10 10 . . . . . 2 2 . . 52 18 18 57 14 5 27 . 19 17 Launcher 193 | . 15 17 17 23 12 10 28 27 1 . . 11 3 4 8 . 2 7 . 4 4 Special 37 | . . 2 15 . . . 5 1 1 . . 9 . . . . . 2 . . 2 Kinetic 231 | . . . . . . . . 2 2 . . 52 18 18 57 14 5 27 . 19 17 Thermal 257 | 11 10 12 15 89 19 13 58 30 . . . . . . . . . . . . . Explosive 193 | . 15 17 17 23 12 10 28 27 1 . . 11 3 4 8 . 2 7 . 4 4 Electromagnetic 13 | . . . 10 . . . . . . . . . . . . . . . . . 3 Robot Hit Streak 47 | 8 9 10 20 24 3 8 37 25 3 . . 28 9 13 47 14 19 13 . 11 27 Robot Miss Streak 4 | 1 3 2 . 2 3 1 2 4 4 . . 2 2 3 2 . 1 2 . 2 2 Penetration Max . | . . . . . . . . . . . . . . . . . . . . . . Secondary Targets . | . . . . . . . . . . . . . . . . . . . . . . Shots Hit Robots 628 | 10 16 26 27 57 11 19 96 67 11 . . 78 34 51 35 10 5 22 . 24 29 Core Hits 658 | 4 24 32 20 44 12 19 63 73 19 . . 61 25 50 66 4 14 50 . 54 24 Critical Hits 7 | . . . . . . . . . . . . 2 1 . 2 . . . . 1 1 Critical Kills 4 | . . . . . . . . . . . . 2 . . 1 . . . . . 1 Critical Parts Destroyed 3 | . . . . . . . . . . . . . 1 . 1 . . . . 1 . Melee Attacks 401 | . 1 40 54 . . 17 34 66 13 . 3 43 30 45 9 . 2 5 . 15 24 Impact 125 | . . . 54 . . 17 34 20 . . . . . . . . . . . . . Slashing 264 | . 1 40 . . . . . 34 13 . 3 43 30 45 9 . 2 5 . 15 24 Piercing 12 | . . . . . . . . 12 . . . . . . . . . . . . . Sneak Attacks 19 | . . 1 1 . . . 4 2 . . . . 3 8 . . . . . . . Combat Hostiles 6 | . . . . . . . . 1 . . . . 2 3 . . . . . . . Follow-up Attacks . | . . . . . . . . . . . . . . . . . . . . . . Damage Inflicted 38874 | 125 1047 1414 1162 2405 773 1297 5413 3400 1364 . . 4082 2771 3418 2417 390 391 2309 . 3400 1296 Guns 3581 | 125 . . 100 1157 176 257 1091 620 . . . . . . . . . . . . 55 Cannons 5813 | . 103 144 . . . . . 64 42 . . 964 625 566 1161 390 147 670 . 415 522 Explosions 19524 | . 944 1002 696 1248 597 983 2419 1918 870 . . 839 1264 907 1256 . 244 1639 . 2195 503 Melee 9956 | . . 268 366 . . 57 1903 798 452 . . 2279 882 1945 . . . . . 790 216 Ramming . | . . . . . . . . . . . . . . . . . . . . . . Kinetic 5566 | . . . . . . . . 64 42 . . 964 625 566 1161 390 147 670 . 415 522 Thermal 5206 | 125 103 144 . 1157 176 553 1091 666 . . . . 1191 . . . . . . . . Explosive 17857 | . 944 1002 696 1248 597 687 2419 1738 870 . . 839 73 907 1256 . 244 1639 . 2195 503 Electromagnetic 289 | . . . 100 . . . . 134 . . . . . . . . . . . . 55 Impact 2410 | . . . 366 . . 57 1903 84 . . . . . . . . . . . . . Slashing 7153 | . . 268 . . . . . 321 452 . . 2279 882 1945 . . . . . 790 216 Piercing 393 | . . . . . . . . 393 . . . . . . . . . . . . . Highest Corruption 3 | . 1 1 1 1 1 . . 1 3 3 . . . . . . . . . 2 . Average Corruption 1 | . 1 1 1 1 1 . . 1 3 3 . . . . . . . . . 1 . Corruption Purged . | . . . . . . . . . . . . . . . . . . . . . . Effects 28 | . 1 . 2 4 3 . . . 9 2 . . . . . . . . . 7 . Message Errors 7 | . . . 1 1 2 . . . 1 . . . . . . . . . . 2 . Matter Fused 2 | . . . . . . . . . 2 . . . . . . . . . . . . Heat Flow Errors 1 | . . . . . . . . . 1 . . . . . . . . . . . . Energy Discharges 5 | . . . . 2 . . . . 2 . . . . . . . . . . 1 . Data Loss (minor) 8 | . 1 . 1 . 1 . . . 1 2 . . . . . . . . . 2 . Targeting Errors 5 | . . . . 1 . . . . 2 . . . . . . . . . . 2 . Overload Shots . | . . . . . . . . . . . . . . . . . . . . . . Overflow Damage 2316 | . 22 14 123 38 93 27 706 195 48 . . 280 468 153 58 . . 6 . 85 . Projectiles 161 | . . 3 . . . . . . . . . 28 16 10 58 . . 6 . 40 . Explosions 629 | . 22 2 74 38 93 27 73 56 7 . . 18 192 27 . . . . . . . Melee 1526 | . . 9 49 . . . 633 139 41 . . 234 260 116 . . . . . 45 . Knockbacks 36 | . . . 4 . . . 4 . 1 . . 2 8 2 5 1 . 4 . 2 3 Impact 7 | . . . 4 . . . 3 . . . . . . . . . . . . . . Kinetic 25 | . . . . . . . . . 1 . . 2 6 2 4 1 . 4 . 2 3 Secondary 4 | . . . . . . . 1 . . . . . 2 . 1 . . . . . . Self-Inflicted Damage 721 | . 11 46 37 38 2 112 25 19 . . . 159 44 7 62 . 11 117 . . 31 Shots 44 | . 1 3 3 4 1 3 3 1 . . . 11 1 1 5 . 1 4 . . 2 Rammed . | . . . . . . . . . . . . . . . . . . . . . . Targets Rammed . | . . . . . . . . . . . . . . . . . . . . . . Kicked . | . . . . . . . . . . . . . . . . . . . . . . Crushed . | . . . . . . . . . . . . . . . . . . . . . . Highest Temperature 234 | . . 65 3 27 3 15 18 12 234 9 . 1 . 8 . . . . . . 13 Average Temperature 18 | . . 28 2 12 1 5 5 6 114 9 . 1 . 8 . . . . . . 5 Received Heat Transfer 1633 | . 42 36 190 78 . 48 168 114 29 6 . 189 45 137 194 54 27 45 . 108 123 Siege Activations . | . . . . . . . . . . . . . . . . . . . . . . Robots Corrupted 1 | . . . 1 . . . . . . . . . . . . . . . . . . Combat Hostiles . | . . . . . . . . . . . . . . . . . . . . . . Parts Fried 8 | . . . 1 . . . 6 . . . . . . 1 . . . . . . . Impact Corruptions 25 | . . . 6 . . . 18 1 . . . . . . . . . . . . . Robots Melted . | . . . . . . . . . . . . . . . . . . . . . . Combat Hostiles . | . . . . . . . . . . . . . . . . . . . . . . Parts Melted 3 | 1 . . . 1 . . 1 . . . . . . . . . . . . . . Heat Transferred 6346 | 370 222 259 . 1665 259 570 1534 667 . . . . 800 . . . . . . . . Parts Sabotaged 2 | . . . . . . . . . . . . . . . . . . . . 2 . Parts Stolen . | . . . . . . . . . . . . . . . . . . . . . . Parts Stripped . | . . . . . . . . . . . . . . . . . . . . . . Power Chain Reactions . | . . . . . . . . . . . . . . . . . . . . . . Missiles Intercepted . | . . . . . . . . . . . . . . . . . . . . . . Alert | -11 -10 -9 -9 -9 -9 -7 -7 -6 -6 -6 -5 -5 -5 -5 -5 -5 -5 -5 -4 -4 -3 ------- Run | Scr Mat Mat Sto Gar Rec Fac Gar Fac Low Low Fac Gar Fac Ext Cet Arc Hub Gar Fac Gar Res Peak Influence 1940 | 15 232 455 222 891 423 1540 1940 1859 . . 297 1169 703 600 780 440 673 1636 759 1052 657 Average Influence 656 | 6 81 223 70 505 326 1322 1534 1366 . . 280 689 484 208 577 383 366 1128 747 860 445 Maximum Alert Level 5 | . 1 2 1 3 2 4 5 5 . . 1 4 3 2 3 2 2 5 3 3 2 Low Security (%) 26 | 100 91 46 99 24 2 . . . . . . 3 20 41 2 . 44 . . . . Level 1 16 | . 8 48 . 16 84 . . . . . 100 6 6 51 32 33 9 . . . 48 Level 2 15 | . . 4 . 31 12 . . . . . . 36 66 6 22 66 46 5 . 21 51 Level 3 18 | . . . . 28 . 12 15 26 . . . 53 6 . 42 . . 33 100 78 . Level 4 14 | . . . . . . 87 28 51 . . . . . . . . . 48 . . . Level 5 7 | . . . . . . . 56 22 . . . . . . . . . 12 . . . High Security . | . . . . . . . . . . . . . . . . . . . . . . Max Security . | . . . . . . . . . . . . . . . . . . . . . . Squads Dispatched 33 | . 3 1 2 . . 3 . 10 . . . . 5 1 . . 3 . . . 5 Investigation 11 | . 3 1 . . . 3 . 4 . . . . . . . . . . . . . Extermination 5 | . . . . . . . . 2 . . . . 2 . . . . . . . 1 Reinforcement 8 | . . . 2 . . . . 1 . . . . . 1 . . 2 . . . 2 Assault 7 | . . . . . . . . 3 . . . . 3 . . . . . . . 1 Garrison 2 | . . . . . . . . . . . . . . . . . 1 . . . 1 Intercept . | . . . . . . . . . . . . . . . . . . . . . . Construction Impeded . | . . . . . . . . . . . . . . . . . . . . . . Haulers Reinforced . | . . . . . . . . . . . . . . . . . . . . . . Alert ID Control Effect 4 | . . . . . . . 1 . . . . 3 . . . . . . . . . Stealth | -11 -10 -9 -9 -9 -9 -7 -7 -6 -6 -6 -5 -5 -5 -5 -5 -5 -5 -5 -4 -4 -3 --------- Run | Scr Mat Mat Sto Gar Rec Fac Gar Fac Low Low Fac Gar Fac Ext Cet Arc Hub Gar Fac Gar Res Distress Signals 11 | . 1 3 1 . . . . 1 . . . . 1 1 1 . 1 . . . 1 Communications Jammed . | . . . . . . . . . . . . . . . . . . . . . . Distress Signals . | . . . . . . . . . . . . . . . . . . . . . . Times Spotted 346 | . 16 34 17 22 11 10 34 29 8 2 . 29 17 25 23 6 8 18 1 20 16 Peak Tracking Total 16 | . 4 9 6 3 4 3 7 7 5 2 . 6 6 5 7 2 4 6 1 16 5 Tactical Retreats 24 | . 2 4 5 . . 1 1 2 . . . 4 2 2 . . . . . . 1 Traps | -11 -10 -9 -9 -9 -9 -7 -7 -6 -6 -6 -5 -5 -5 -5 -5 -5 -5 -5 -4 -4 -3 ------- Run | Scr Mat Mat Sto Gar Rec Fac Gar Fac Low Low Fac Gar Fac Ext Cet Arc Hub Gar Fac Gar Res Traps Triggered 25 | . 2 1 1 3 . . 6 5 . . . 2 . . . . . 4 . 1 . Indirectly . | . . . . . . . . . . . . . . . . . . . . . . Trap Hack Attempts . | . . . . . . . . . . . . . . . . . . . . . . Triggered . | . . . . . . . . . . . . . . . . . . . . . . Disarmed 5 | . . . . . . . . . . . . . 5 . . . . . . . . Reprogrammed 16 | . . 6 . . . . . . . . . . . 4 . . 6 . . . . Reused 2 | . . 1 . . . . . . . . . . . 1 . . . . . . . Traps Extracted . | . . . . . . . . . . . . . . . . . . . . . . Installed . | . . . . . . . . . . . . . . . . . . . . . . Triggered 3 | . . 1 . . . . . 1 . . . . . 1 . . . . . . . Machines | -11 -10 -9 -9 -9 -9 -7 -7 -6 -6 -6 -5 -5 -5 -5 -5 -5 -5 -5 -4 -4 -3 ---------- Run | Scr Mat Mat Sto Gar Rec Fac Gar Fac Low Low Fac Gar Fac Ext Cet Arc Hub Gar Fac Gar Res Machines Disabled 89 | . 3 1 3 6 2 16 10 6 1 . . 11 7 2 3 6 1 8 . 2 1 Max in Single Turn 8 | . 1 1 1 1 1 8 2 3 1 . . 2 7 1 1 1 1 2 . 2 . Garrison Access 1 | . . . . . . . . . . . . . . . . . . . . . 1 Garrison Relay 13 | . . . . 4 . . 4 . . . . 3 . . . . . 2 . . . Phase Generator 4 | . . . . . . . 1 . . . . 1 . . . . . 1 . 1 . Machines Sabotaged . | . . . . . . . . . . . . . . . . . . . . . . Garrisons Compromised . | . . . . . . . . . . . . . . . . . . . . . . Overloaded Fab Kills . | . . . . . . . . . . . . . . . . . . . . . . Fab Network Shutdowns 1 | . . . . . . . . 1 . . . . . . . . . . . . . Hacking | -11 -10 -9 -9 -9 -9 -7 -7 -6 -6 -6 -5 -5 -5 -5 -5 -5 -5 -5 -4 -4 -3 --------- Run | Scr Mat Mat Sto Gar Rec Fac Gar Fac Low Low Fac Gar Fac Ext Cet Arc Hub Gar Fac Gar Res Machines Accessed 111 | . 10 10 10 . 11 8 . 21 1 . 1 . 11 12 5 1 4 . 1 . 5 Terminals 74 | . 8 8 8 . 6 2 . 12 . . . . 6 12 5 . 3 . . . 4 Fabricators 6 | . . . . . . 1 . 2 . . . . 3 . . . . . . . . Repair Stations 6 | . . 1 1 . . 1 . 2 . . . . 1 . . . . . . . . Recycling Units 13 | . 2 . . . 5 3 . 3 . . . . . . . . . . . . . Scanalyzers 4 | . . 1 . . . . . 1 . . . . 1 . . . . . . . 1 Garrison Access 6 | . . . 1 . . 1 . 1 . . 1 . . . . . 1 . 1 . . Total Hacks 568 | . 34 55 57 . 36 46 . 82 1 . 4 . 64 87 12 25 24 . 4 . 37 Successful 442 | . 23 44 45 . 29 32 . 62 1 . 3 . 48 70 12 25 18 . 2 . 28 Failed 125 | . 11 11 12 . 7 14 . 19 . . 1 . 16 17 . . 6 . 2 . 9 Catastrophic 10 | . 2 1 . . 3 . . . . . . . 2 2 . . . . . . . Database Lockouts 3 | . . . . . . . . 3 . . . . . . . . . . . . . Manual 302 | . 27 33 30 . 28 17 . 41 . . 2 . 31 53 12 3 10 . 2 . 13 Terminals 411 | . 30 42 36 . 31 18 . 56 . . . . 53 87 12 . 20 . . . 26 Fabricators 15 | . . . . . . 3 . 7 . . . . 5 . . . . . . . . Repair Stations 32 | . . 3 18 . . 5 . 4 . . . . 2 . . . . . . . . Recycling Units 31 | . 4 . . . 5 13 . 9 . . . . . . . . . . . . . Scanalyzers 28 | . . 10 . . . . . 3 . . . . 4 . . . . . . . 11 Garrison Access 25 | . . . 3 . . 7 . 3 . . 4 . . . . . 4 . 4 . . Terminal Hacks 187 | . 7 14 6 . 14 6 . 25 1 . . . 29 34 5 25 10 . . . 11 Record 45 | . . . . . . . . 4 1 . . . 2 6 4 25 . . . . 3 Part Schematic 7 | . . . . . . 2 . . . . . . 2 . . . 2 . . . 1 Robot Schematic 1 | . . . . . . . . . . . . . . . . . 1 . . . . Robot Analysis 9 | . . 1 . . 1 . . 4 . . . . 2 1 . . . . . . . Prototype ID Bank 22 | . 2 4 . . 3 . . 5 . . . . 3 3 . . 1 . . . 1 Open Door 10 | . . . 3 . . . . . . . . . . 6 1 . . . . . . Level Access Points 6 | . . . . . 1 . . 2 . . . . 1 . . . 1 . . . 1 Branch Access Points 9 | . 1 . 1 . 1 1 . 1 . . . . 2 1 . . 1 . . . . Emergency Access Points 4 | . 1 . . . 1 . . 1 . . . . . . . . . . . . 1 Machine Index 1 | . . . . . . . . . . . . . . 1 . . . . . . . Terminal Index 7 | . 1 1 . . 1 1 . 1 . . . . 1 1 . . . . . . . Recycling Unit Index 1 | . . . . . 1 . . . . . . . . . . . . . . . . Scanalyzer Index 1 | . . 1 . . . . . . . . . . . . . . . . . . . Garrison Index 4 | . . 1 . . 1 . . 1 . . . . . . . . 1 . . . . Alert Level 5 | . 1 1 . . 1 . . . . . . . 2 . . . . . . . . Unreport Threat 21 | . . 2 . . 2 1 . 4 . . . . 5 4 . . . . . . 3 Locate Traps 1 | . . . . . . . . . . . . . . 1 . . . . . . . Disarm Traps 3 | . . . . . . . . . . . . . 3 . . . . . . . . Reprogram Traps 4 | . . 1 . . . . . . . . . . . 2 . . 1 . . . . Maintenance Status 1 | . . . . . . . . . . . . . 1 . . . . . . . . Patrol Status 1 | . . . . . . . . . . . . . . 1 . . . . . . . Investigation Status 1 | . . . . . . . . . . . . . . 1 . . . . . . . Extermination Status 1 | . . . . . 1 . . . . . . . . . . . . . . . . Assault Status 1 | . . . . . . . . . . . . . . 1 . . . . . . . Recall Investigation 4 | . . 1 1 . . . . . . . . . 1 1 . . . . . . . Recall Reinforcements 4 | . . . 1 . . . . 1 . . . . . 1 . . . . . . 1 Recall Assault 2 | . . . . . . . . 1 . . . . 1 . . . . . . . . Hauler Manifests 1 | . . . . . . . . . . . . . 1 . . . . . . . . Registered Components 3 | . . 1 . . . . . . . . . . 1 1 . . . . . . . Registered Prototypes 2 | . 1 . . . . . . . . . . . 1 . . . . . . . . Zone Layout 5 | . . . . . . 1 . . . . . . . 2 . . 2 . . . . Fabricator Hacks 11 | . . . . . . 3 . 4 . . . . 4 . . . . . . . . Network Status 1 | . . . . . . 1 . . . . . . . . . . . . . . . Load Schematic 2 | . . . . . . . . 1 . . . . 1 . . . . . . . . Build 8 | . . . . . . 2 . 3 . . . . 3 . . . . . . . . Repair Station Hacks 32 | . . 3 18 . . 5 . 4 . . . . 2 . . . . . . . . Scan Component 14 | . . 1 8 . . 2 . 2 . . . . 1 . . . . . . . . Repair 14 | . . 1 8 . . 2 . 2 . . . . 1 . . . . . . . . Refit 4 | . . 1 2 . . 1 . . . . . . . . . . . . . . . Recycling Unit Hacks 11 | . 2 . . . . 4 . 5 . . . . . . . . . . . . . Process 3 | . . . . . . 1 . 2 . . . . . . . . . . . . . Report Inventory 5 | . 2 . . . . 2 . 1 . . . . . . . . . . . . . Retrieve Matter 3 | . . . . . . 1 . 2 . . . . . . . . . . . . . Scanalyzer 27 | . . 10 . . . . . 2 . . . . 4 . . . . . . . 11 Insert Component 10 | . . 5 . . . . . 1 . . . . 1 . . . . . . . 3 Analyze 17 | . . 5 . . . . . 1 . . . . 3 . . . . . . . 8 Garrison Access Hacks 9 | . . . 1 . . 1 . 2 . . 2 . . . . . 1 . 2 . . Unlock Access 6 | . . . 1 . . 1 . 1 . . 1 . . . . . 1 . 1 . . Coupler Status 3 | . . . . . . . . 1 . . 1 . . . . . . . 1 . . Unauthorized Hacks 366 | . 31 39 46 . 32 30 . 41 . . 3 . 21 74 14 . 16 . 2 . 17 Terminals 142 | . 12 17 18 . 10 6 . 15 . . . . 9 36 7 . 6 . . . 6 Track 39 | . 3 6 5 . 3 1 . 4 . . . . 3 10 1 . 2 . . . 1 Assimilate 12 | . . 1 2 . . 1 . 1 . . . . . 7 . . . . . . . Botnet 66 | . 8 6 6 . 6 2 . 9 . . . . 5 12 5 . 3 . . . 4 Detonate 6 | . . 1 2 . 1 1 . . . . . . . 1 . . . . . . . Disrupt 10 | . . 2 3 . . . . 1 . . . . . 4 . . . . . . . Operators 9 | . 1 1 . . . 1 . . . . . . 1 2 1 . 1 . . . 1 Fabricators 1 | . . . . . . . . 1 . . . . . . . . . . . . . Overload 1 | . . . . . . . . 1 . . . . . . . . . . . . . Repair Stations . | . . . . . . . . . . . . . . . . . . . . . . Recycling Units 13 | . 2 . . . 5 3 . 3 . . . . . . . . . . . . . Monitor 2 | . . . . . . . . 2 . . . . . . . . . . . . . Tunnel 11 | . 2 . . . 5 3 . 1 . . . . . . . . . . . . . Scanalyzers . | . . . . . . . . . . . . . . . . . . . . . . Garrison Access 9 | . . . 2 . . 4 . 1 . . 1 . . . . . 1 . . . . Broadcast 3 | . . . 1 . . 1 . . . . 1 . . . . . . . . . . Decoy 1 | . . . . . . 1 . . . . . . . . . . . . . . . Reprogram 3 | . . . . . . 1 . 1 . . . . . . . . 1 . . . . Watchers 2 | . . . 1 . . 1 . . . . . . . . . . . . . . . Data Cores Recovered 2 | . . 1 . . . . . . . . . . . . . . . . . . 1 Used 2 | . . 1 . . . . . . . . . . . . . . . . . . 1 Hacking Detections 85 | . 8 10 10 . 6 6 . 16 . . 1 . 7 9 3 . 4 . 1 . 4 Full Trace Events 2 | . . . . . 1 . . 1 . . . . . . . . . . . . . Feedback Events . | . . . . . . . . . . . . . . . . . . . . . . Feedback Blocked . | . . . . . . . . . . . . . . . . . . . . . . Robot Schematics Acquired 1 | . . . . . . . . . . . . . . . . . 1 . . . . Robots Built 2 | . . . . . . 2 . . . . . . . . . . . . . . . Matter 306 | . . . . . . 306 . . . . . . . . . . . . . . . Time 162 | . . . . . . 162 . . . . . . . . . . . . . . . Total Robot Build Rating 2 | . . . . . . 2 . . . . . . . . . . . . . . . Part Schematics Acquired 16 | . . 4 . . . 2 . 1 . . . . 3 . . . 2 . . . 4 Parts Built 7 | . . . . . . . . 1 . . . . 6 . . . . . . . . Matter 826 | . . . . . . . . 168 . . . . 658 . . . . . . . . Time 259 | . . . . . . . . 42 . . . . 217 . . . . . . . . Total Part Build Rating 42 | . . . . . . . . 4 . . . . 38 . . . . . . . . Parts Repaired 14 | . . 1 8 . . 2 . 2 . . . . 1 . . . . . . . . Time 454 | . . 13 269 . . 38 . 99 . . . . 35 . . . . . . . . Parts Recycled . | . . . . . . . . . . . . . . . . . . . . . . Recycled Matter 51 | . . . . . . 42 . 9 . . . . . . . . . . . . . Retrieved Matter 51 | . . . . . . 42 . 9 . . . . . . . . . . . . . Retrieved Components . | . . . . . . . . . . . . . . . . . . . . . . Parts Scanalyzed 10 | . . 5 . . . . . 1 . . . . 1 . . . . . . . 3 Part Schematics Acquired 9 | . . 4 . . . . . 1 . . . . 1 . . . . . . . 3 Parts Damaged 2 | . . . . . . . . 1 . . . . 1 . . . . . . . . Bothacking | -11 -10 -9 -9 -9 -9 -7 -7 -6 -6 -6 -5 -5 -5 -5 -5 -5 -5 -5 -4 -4 -3 ------------ Run | Scr Mat Mat Sto Gar Rec Fac Gar Fac Low Low Fac Gar Fac Ext Cet Arc Hub Gar Fac Gar Res Used RIF Installer 5 | . . . . 1 . . 1 . . . . 1 . . . . . 1 . 1 . Coupler Efficiency 1 | . . . . . . . . . . . . 1 . . . . . . . . . Alert ID Control 1 | . . . . . . . 1 . . . . . . . . . . . . . . Program Shield 1 | . . . . . . . . . . . . . . . . . . . . 1 . Autooverride 1 | . . . . . . . . . . . . . . . . . . 1 . . . Robots Hacked 17 | . . . . . . . 2 1 . . . 8 . . . . . 2 . . 4 Non-combat . | . . . . . . . . . . . . . . . . . . . . . . Combat 17 | . . . . . . . 2 1 . . . 8 . . . . . 2 . . 4 Autooverrided 2 | . . . . . . . . . . . . . . . . . . . . . 2 Robot Hacks Applied 15 | . . . . . . . 2 1 . . . 8 . . . . . 2 . . 2 parse_system 1 | . . . . . . . . 1 . . . . . . . . . . . . . overwrite_iff 5 | . . . . . . . . . . . . 5 . . . . . . . . . formatsys_high 9 | . . . . . . . 2 . . . . 3 . . . . . 2 . . 2 Relay Couplers Released 24 | . . . . 8 . . 5 . . . . 6 . . . . . 4 . . 1 Machine Destruction 24 | . . . . 8 . . 5 . . . . 6 . . . . . 4 . . 1 Attached 8 | . . . . 1 . 1 2 . . . . 1 . . . . . 3 . . . Robots Rewired . | . . . . . . . . . . . . . . . . . . . . . . Allies Hacked . | . . . . . . . . . . . . . . . . . . . . . . Hacks Repelled . | . . . . . . . . . . . . . . . . . . . . . . Allies | -11 -10 -9 -9 -9 -9 -7 -7 -6 -6 -6 -5 -5 -5 -5 -5 -5 -5 -5 -4 -4 -3 -------- Run | Scr Mat Mat Sto Gar Rec Fac Gar Fac Low Low Fac Gar Fac Ext Cet Arc Hub Gar Fac Gar Res Total Allies 37 | . . . . . . 2 2 3 . . . 8 . 11 5 . . 2 . . 4 Largest Group 9 | . . . . . . 1 2 3 . . . 2 . 6 9 7 5 5 4 4 2 Highest-Rated Group 707 | . . . . . . 9 61 87 . . . 24 . 299 707 583 402 402 246 246 188 Highest-Rated Ally 156 | . . . . . . 9 32 32 . . . 12 . 156 156 156 94 94 94 94 94 Total Orders 41 | . . . 2 . . 10 9 1 . . . 4 . 3 3 . 5 2 2 . . STAY 3 | . . . . . . . 2 . . . . . . . . . . . 1 . . GOTO 20 | . . . . . . 5 6 . . . . 2 . . 2 . 4 1 . . . FOLLOW 8 | . . . . . . . 1 . . . . 2 . 1 1 . 1 1 1 . . GUARD 1 | . . . . . . . . 1 . . . . . . . . . . . . . PICKUP 4 | . . . . . . 4 . . . . . . . . . . . . . . . COLLECT 1 | . . . . . . 1 . . . . . . . . . . . . . . . EXPLORE 4 | . . . 2 . . . . . . . . . . 2 . . . . . . . Ally Attacks 294 | . . . . . . . 5 13 . . . 15 . 43 72 29 40 33 . 24 20 Total Damage 8825 | . . . . . . . 181 181 . . . 157 . 1228 2216 1073 1662 943 . 661 523 Kills 54 | . . . . . . . 1 4 . . . 3 . 8 17 4 9 7 . 1 . Allies Corrupted 1 | . . . . . . . 1 . . . . . . . . . . . . . . Allies Melted . | . . . . . . . . . . . . . . . . . . . . . . Intel | -11 -10 -9 -9 -9 -9 -7 -7 -6 -6 -6 -5 -5 -5 -5 -5 -5 -5 -5 -4 -4 -3 ------- Run | Scr Mat Mat Sto Gar Rec Fac Gar Fac Low Low Fac Gar Fac Ext Cet Arc Hub Gar Fac Gar Res Robot Analysis Total 9 | . . 1 . . 1 . . 4 . . . . 2 1 . . . . . . . Derelict Logs Recovered 3 | . . . . . . . . . 2 1 . . . . . . . . . . . Drone Launches 18 | . . . 16 . . . . . . . . . . 2 . . . . . . . Drone Recoveries . | . . . . . . . . . . . . . . . . . . . . . . Exploration | -11 -10 -9 -9 -9 -9 -7 -7 -6 -6 -6 -5 -5 -5 -5 -5 -5 -5 -5 -4 -4 -3 ------------- Run | Scr Mat Mat Sto Gar Rec Fac Gar Fac Low Low Fac Gar Fac Ext Cet Arc Hub Gar Fac Gar Res Turns Passed 10060 | 66 905 672 723 680 235 502 744 1166 425 40 31 679 500 682 694 98 138 315 64 332 369 Spaces Moved 13150 | 46 1052 720 321 1212 577 794 957 1806 904 129 53 694 828 856 739 147 104 358 121 276 456 Core 15 | 13 . 1 . . . . . . . . . . 1 . . . . . . . . Treads . | . . . . . . . . . . . . . . . . . . . . . . Legs . | . . . . . . . . . . . . . . . . . . . . . . Wheels 266 | 33 233 . . . . . . . . . . . . . . . . . . . . Hover 445 | . . 194 251 . . . . . . . . . . . . . . . . . . Flight 12424 | . 819 525 70 1212 577 794 957 1806 904 129 53 694 827 856 739 147 104 358 121 276 456 Fastest Speed 17 | 50 40 40 26 29 29 20 29 17 27 17 27 17 27 21 28 28 21 28 28 28 21 Average Speed 31 | 71 48 45 53 31 29 28 29 26 27 26 27 27 27 27 28 28 27 28 28 28 27 Slowest Speed 100 | 80 80 60 60 32 29 29 29 29 27 27 27 95 100 28 30 28 28 28 28 28 30 Overloaded Moves 118 | . . . 29 . . 19 . 23 . 9 . 9 . 8 . . 3 . . . 18 Propulsion Burnouts . | . . . . . . . . . . . . . . . . . . . . . . Robots Hopped 29 | . 9 3 6 . 4 1 . 2 1 . . . 2 1 . . . . . . . Cave-ins Triggered 3 | . . . . . . . . 2 . . . . . . 1 . . . . . . Exploration Rate (%) 58 | 3 99 66 77 99 94 15 95 48 88 25 3 88 20 81 97 91 18 86 5 76 16 Regions Visited 21 Branch Regions 8 Pre-discovered Areas 11 | . 2 . . . 5 3 . 1 . . . . . . . . . . . . . Known Exits Taken 14 | . . 1 1 . 1 1 . 1 1 1 1 . 1 1 1 1 1 . 1 . . Unknown Exits Taken 2 | 1 1 . . . . . . . . . . . . . . . . . . . . Scrap Searched 2 | . . . . . . . . . 2 . . . . . . . . . . . . Spaces Dug 247 | . 6 38 18 . 29 8 15 43 . . 2 . 13 11 20 . 2 22 . 1 19 Terrain Destroyed 2803 | . 59 130 102 83 89 188 279 275 51 . 2 469 148 164 215 . 45 342 . 89 73 Melee 133 | . 1 22 11 . . 8 . 43 . . 2 . 13 11 . . 2 . . 1 19 Projectile 46 | . . . . . 11 . 2 . 1 . . 2 . 2 21 . . 2 . 1 4 AOE 2624 | . 58 108 91 83 78 180 277 232 50 . . 467 135 151 194 . 43 340 . 87 50 Actions | -11 -10 -9 -9 -9 -9 -7 -7 -6 -6 -6 -5 -5 -5 -5 -5 -5 -5 -5 -4 -4 -3 --------- Run | Scr Mat Mat Sto Gar Rec Fac Gar Fac Low Low Fac Gar Fac Ext Cet Arc Hub Gar Fac Gar Res Total 17548 | 65 1406 947 697 1400 608 1013 1283 2314 1058 134 64 1026 1030 1203 1134 189 199 518 150 477 633 Wait 2664 | 4 317 106 228 36 11 163 105 291 120 6 2 149 116 224 290 29 89 94 26 155 103 Move 13073 | 45 1034 713 310 1211 569 791 956 1799 901 128 52 693 823 853 738 146 103 357 120 275 456 Hop 26 | . 8 3 5 . 3 1 . 2 1 . . . 2 1 . . . . . . . Pick Up 38 | 1 3 6 4 4 . 4 2 3 1 . 1 1 2 2 . . . 2 . . 2 Fast Attach 118 | 4 4 10 14 1 . 9 4 24 7 . 2 3 9 4 5 . . 3 2 2 11 Attach 18 | . . 5 2 1 . 2 1 2 . . 1 1 2 . . . . . . . 1 Detach 8 | . . 2 2 . . . . 1 . . . . 1 . . . . . . . 2 Swap 53 | . 1 10 6 1 . 1 6 6 2 . . 6 . 1 3 . . 4 . . 6 Drop 125 | . 6 12 12 2 . 10 5 22 9 . 3 3 10 6 6 . . 5 2 . 12 Fire 574 | 11 25 29 38 89 24 13 65 40 3 . . 61 18 18 58 14 5 31 . 19 13 Melee 401 | . 1 40 54 . . 17 34 66 13 . 3 43 30 45 9 . 2 5 . 15 24 Ram . | . . . . . . . . . . . . . . . . . . . . . . Kick . | . . . . . . . . . . . . . . . . . . . . . . Crush . | . . . . . . . . . . . . . . . . . . . . . . Escape Stasis 221 | . . . . 38 . . 73 46 . . . 50 . . . . . 11 . 3 . Rewire 1 | . . . . . . . . . . . . 1 . . . . . . . . . Trap . | . . . . . . . . . . . . . . . . . . . . . . Miscellaneous 228 | . 7 11 22 17 1 2 32 12 1 . . 15 17 49 25 . . 6 . 8 3 Route ------- -11/Scrapyard -10/Materials (discovered 5 exits: *Mat x3 / *Min x2) -9/Materials (discovered 5 exits: *Mat x2 / *Min x2 / *Sto) -9/Storage (discovered 3 exits: *Mat / Rec / Gar) -9/Garrison (discovered 3 exits: *Rec x3) -9/Recycling -7/Factory (discovered 4 exits: *Fac / *Low x2 / Gar) -7/Garrison (discovered 3 exits: *Fac x3) -6/Factory (discovered 7 exits: *Fac x4 / *Low x2 / Gar) -6/Lower Caves -6/Lower Caves -5/Factory -5/Garrison (discovered 3 exits: *Fac x3) -5/Factory (discovered 8 exits: Fac x4 / Upp x2 / *Ext x2) -5/Extension (discovered 3 exits: *Fac x2 / *Cet) -5/Cetus (discovered 3 exits: *Fac x2 / *Arc) -5/Archives (discovered 3 exits: *Fac / *Hub x2) -5/Hub_04(d) (discovered 5 exits: *Fac x4 / Gar) -5/Garrison (discovered 3 exits: *Fac x3) -4/Factory -4/Garrison (discovered 3 exits: *Res x3) -3/Research (discovered 4 exits: Res x3 / [Qua]) History --------- Turn | Location | Event 5 | -11/Scrapyard | Discovered new exit (range 16) 67 | -11/Scrapyard | Entered Materials 305 | -10/Materials | Build established: Mutant 410 | -10/Materials | Discovered new exit (range 12) 564 | -10/Materials | Identified exit to Mines 723 | -10/Materials | Discovered new exit (range 9) 756 | -10/Materials | Discovered new exit (range 12) 795 | -10/Materials | Build established: Scout 928 | -10/Materials | Reached level 2 972 | -10/Materials | Entered another Materials area 974 | -9/Materials | Reached level 3 974 | -9/Materials | Upgraded with Utility slot (x1) 1078 | -9/Materials | Discovered new exit (range 18) 1093 | -9/Materials | Identified exit to Mines 1134 | -9/Materials | Reached level 4 1266 | -9/Materials | Build established: Hacker-Scout 1293 | -9/Materials | Discovered new exit (range 18) 1300 | -9/Materials | Destroyed 8 combat bots 1307 | -9/Materials | Upgraded with Propulsion slot (x1) 1307 | -9/Materials | Upgraded with Utility slot (x1) 1375 | -9/Materials | Reached level 5 1377 | -9/Materials | Upgraded with Weapon slot (x1) 1417 | -9/Materials | Discovered new exit (range 13) 1417 | -9/Materials | Discovered new exit (range 10) 1432 | -9/Materials | Identified exit to Storage 1481 | -9/Materials | Discovered exit to Mines (range 7) 1507 | -9/Materials | Repaired Mining Claw 1595 | -9/Materials | Identified exit to Materials 1644 | -9/Materials | Entered Storage 1646 | -9/Storage | Reached level 6 1877 | -9/Storage | Discovered exit to Materials (range 52) 1918 | -9/Storage | Identified exit to Recycling 2115 | -9/Storage | Repaired Shock Rifle 2168 | -9/Storage | Repaired Hvy. Ion Engine 2200 | -9/Storage | Repaired Flight Unit 2202 | -9/Storage | Repaired Imp. Terrain Scanner 2228 | -9/Storage | Repaired Grenade Launcher 2264 | -9/Storage | Repaired Imp. Hover Unit 2296 | -9/Storage | Repaired Imp. Terrain Scanner 2330 | -9/Storage | Repaired Shield Generator 2367 | -9/Storage | Identified exit to Garrison 2367 | -9/Storage | Entered Garrison 2369 | -9/Garrison | Reached level 7 2369 | -9/Garrison | Installed Relay Interface Framework 2382 | -9/Garrison | Triggered checkpoint 2409 | -9/Garrison | Garrison Relay disabled 2440 | -9/Garrison | Triggered checkpoint 2444 | -9/Garrison | Garrison Relay disabled 2444 | -9/Garrison | Reached level 8 2446 | -9/Garrison | Upgraded with Utility slot (x1) 2460 | -9/Garrison | Discovered exit to Recycling (range 9) 2498 | -9/Garrison | Discovered exit to Recycling (range 13) 2534 | -9/Garrison | Triggered checkpoint 2550 | -9/Garrison | Triggered checkpoint 2574 | -9/Garrison | Destroyed 7 combat bots 2616 | -9/Garrison | Triggered checkpoint 2692 | -9/Garrison | Discovered exit to Recycling (range 15) 2730 | -9/Garrison | Triggered checkpoint 2778 | -9/Garrison | Garrison Relay disabled 2834 | -9/Garrison | Triggered checkpoint 2837 | -9/Garrison | Reached level 9 2922 | -9/Garrison | Triggered checkpoint 2927 | -9/Garrison | Garrison Relay disabled 2930 | -9/Garrison | Upgraded with Propulsion slot (x1) 3047 | -9/Garrison | Entered Recycling 3073 | -9/Recycling | Spotter reported a threat 3083 | -9/Recycling | Spotter reported a threat 3088 | -9/Recycling | Spotter reported a threat 3088 | -9/Recycling | Spotter reported a threat 3089 | -9/Recycling | Spotter reported a threat 3103 | -9/Recycling | Spotter reported a threat 3120 | -9/Recycling | Identified exit to Factory 3148 | -9/Recycling | Destroyed 7 combat bots 3175 | -9/Recycling | Spotter reported a threat 3175 | -9/Recycling | Spotter reported a threat 3176 | -9/Recycling | Reached level 10 3231 | -9/Recycling | Spotter reported a threat 3260 | -9/Recycling | Spotter reported a threat 3282 | -9/Recycling | Entered Factory 3284 | -7/Factory | Reached level 11 3284 | -7/Factory | Upgraded with Power slot (x1) 3284 | -7/Factory | Upgraded with Weapon slot (x1) 3376 | -7/Factory | Discovered new exit (range 17) 3398 | -7/Factory | Fabricated A-02 Transporter? 3417 | -7/Factory | Identified exit to Factory 3466 | -7/Factory | Repaired Missile Launcher 3486 | -7/Factory | Repaired Hvy. Mace 3530 | -7/Factory | Reached level 12 3536 | -7/Factory | Upgraded with Utility slot (x1) 3543 | -7/Factory | Identified exit to Lower Caves 3657 | -7/Factory | Identified exit to Garrison 3708 | -7/Factory | Fabricated A-02 Transporter (x1) 3784 | -7/Factory | Entered Garrison 3784 | -7/Garrison | Accompanied by 1 ally 3808 | -7/Garrison | Triggered checkpoint 3810 | -7/Garrison | Triggered checkpoint 3834 | -7/Garrison | Reached level 13 3863 | -7/Garrison | Garrison Relay disabled 3893 | -7/Garrison | Destroyed 9 combat bots 3901 | -7/Garrison | Triggered checkpoint 3908 | -7/Garrison | Reached level 14 3930 | -7/Garrison | Discovered exit to Factory (range 4) 3935 | -7/Garrison | Expanded RIF knowledge: Alert ID Control 3942 | -7/Garrison | Triggered checkpoint 3999 | -7/Garrison | Garrison Relay disabled 4029 | -7/Garrison | Phase Generator disabled 4040 | -7/Garrison | Triggered checkpoint 4089 | -7/Garrison | Destroyed 8 combat bots 4111 | -7/Garrison | Triggered checkpoint 4130 | -7/Garrison | Discovered exit to Factory (range 8) 4141 | -7/Garrison | Reached level 15 4141 | -7/Garrison | Triggered checkpoint 4157 | -7/Garrison | Garrison Relay disabled 4246 | -7/Garrison | Found Launcher Loader 4256 | -7/Garrison | Garrison Relay disabled 4273 | -7/Garrison | Triggered checkpoint 4312 | -7/Garrison | Triggered checkpoint 4369 | -7/Garrison | Discovered exit to Factory (range 14) 4464 | -7/Garrison | Upgraded with Utility slot (x1) 4528 | -7/Garrison | Entered Factory 4528 | -6/Factory | Accompanied by 1 ally 4530 | -6/Factory | Reached level 16 4532 | -6/Factory | Upgraded with Propulsion slot (x1) 4702 | -6/Factory | Fabricated Remote Datajack? 4718 | -6/Factory | Crushed by falling debris 4834 | -6/Factory | Local fabrication network quarantined 4841 | -6/Factory | Reached level 17 4878 | -6/Factory | First assault squad dispatched 4878 | -6/Factory | Discovered new exit (range 16) 4933 | -6/Factory | Identified exit to Factory 4951 | -6/Factory | Discovered exit to Factory (range 18) 5027 | -6/Factory | Central database locked down 5145 | -6/Factory | Repaired Missile Launcher 5238 | -6/Factory | Found Prototype Launcher 5238 | -6/Factory | Identified Scatter Rocket Array 5255 | -6/Factory | Identified exit to Lower Caves 5305 | -6/Factory | Crushed by falling debris 5590 | -6/Factory | Spotted B-75 Beast 5591 | -6/Factory | Identified exit to Garrison 5594 | -6/Factory | Reached level 18 5614 | -6/Factory | Repaired Scatter Rocket Array 5694 | -6/Factory | Entered Lower Caves 5735 | -6/Lower Caves | Learned Factory trap positions 5742 | -6/Lower Caves | Learned Factory non-interactive machine intel 5960 | -6/Lower Caves | Discovered new exit (range 15) 5987 | -6/Lower Caves | Identified exit to Lower Caves 6015 | -6/Lower Caves | Found Imp. Powered Armor 6119 | -6/Lower Caves | Entered another Lower Caves area 6122 | -6/Lower Caves | Attracted the attention of an 0b10 checkpoint 6123 | -6/Lower Caves | Discovered exit to Factory (range 21) 6148 | -6/Lower Caves | Encountered a Warlord checkpoint 6150 | -6/Lower Caves | Learned Factory garrison access intel 6159 | -6/Lower Caves | Entered Factory 6160 | -5/Factory | Loaded intel: 75 trap records 6161 | -5/Factory | Loaded intel: 178 non-interactive machine locations 6161 | -5/Factory | Reached level 19 6162 | -5/Factory | Loaded intel: 4 garrison access locations 6184 | -5/Factory | Identified exit to Garrison 6190 | -5/Factory | Entered Garrison 6192 | -5/Garrison | Reached level 20 6192 | -5/Garrison | Upgraded with Utility slot (x1) 6214 | -5/Garrison | Phase Generator disabled 6292 | -5/Garrison | Triggered checkpoint 6311 | -5/Garrison | Triggered checkpoint 6374 | -5/Garrison | Build established: Wizard-Scout 6383 | -5/Garrison | Triggered checkpoint 6388 | -5/Garrison | Garrison Relay disabled 6503 | -5/Garrison | Discovered new exit (range 13) 6504 | -5/Garrison | Reached level 21 6511 | -5/Garrison | Identified exit to Factory 6530 | -5/Garrison | Triggered checkpoint 6533 | -5/Garrison | Triggered checkpoint 6549 | -5/Garrison | Core integrity fell below 50% 6688 | -5/Garrison | Discovered exit to Factory (range 5) 6690 | -5/Garrison | Expanded RIF knowledge: Coupler Efficiency 6727 | -5/Garrison | Discovered exit to Factory (range 23) 6794 | -5/Garrison | Spotted B-75 Beast 6796 | -5/Garrison | Garrison Relay disabled 6837 | -5/Garrison | Triggered checkpoint 6840 | -5/Garrison | Garrison Relay disabled 6869 | -5/Garrison | Entered Factory 6919 | -5/Factory | Discovered new exit (range 24) 6979 | -5/Factory | Fabricated Nuclear Pulse Thruster (x2) 7017 | -5/Factory | Identified exit to Factory 7020 | -5/Factory | Fabricated Particle Reactor? 7094 | -5/Factory | Repaired Cld. VTOL Module 7169 | -5/Factory | Fabricated Field Propulsion Drive? 7169 | -5/Factory | First assault squad dispatched 7174 | -5/Factory | Discovered new exit (range 24) 7181 | -5/Factory | Identified exit to Upper Caves 7181 | -5/Factory | Identified exit to Extension 7262 | -5/Factory | Reached level 22 7311 | -5/Factory | Upgraded with Propulsion slot (x1) 7369 | -5/Factory | Entered Extension 7514 | -5/Extension | Destroyed 7 combat bots 7525 | -5/Extension | Disrupted transfer network 7549 | -5/Extension | Spotted B-75 Beast 7568 | -5/Extension | Discovered exit to Factory (range 24) 7712 | -5/Extension | Destroyed 10 combat bots 7716 | -5/Extension | Identified exit to Cetus 7723 | -5/Extension | Rescued a captive Derelict 7725 | -5/Extension | Rescued a captive Derelict 7783 | -5/Extension | Rescued a captive Derelict 7798 | -5/Extension | Rescued a captive Derelict 7799 | -5/Extension | Rescued a captive Derelict 7812 | -5/Extension | Spotted B-75 Beast 7823 | -5/Extension | Rescued a captive Derelict 7824 | -5/Extension | Rescued A7 7826 | -5/Extension | Rescued a captive Derelict 7837 | -5/Extension | Rescued a captive Derelict 7869 | -5/Extension | Reached level 23 8012 | -5/Extension | Rescued a captive Derelict 8013 | -5/Extension | Rescued a captive Derelict 8025 | -5/Extension | Discovered exit to Factory (range 10) 8051 | -5/Extension | Entered Cetus 8051 | -5/Cetus | Accompanied by 6 allies 8056 | -5/Cetus | Acquired a Cetus Manufacturing Module code from A7 8060 | -5/Cetus | Spotted Cetus Guard 8060 | -5/Cetus | Spotted Cetus Guard 8060 | -5/Cetus | Spotted Cetus Guard 8060 | -5/Cetus | Spotted Cetus Guard 8079 | -5/Cetus | Destroyed Cetus Guard 8090 | -5/Cetus | Allies destroyed Cetus Guard 8092 | -5/Cetus | Allies destroyed Cetus Guard 8095 | -5/Cetus | Allies destroyed Cetus Guard 8108 | -5/Cetus | Discovered exit to Factory (range 20) 8167 | -5/Cetus | Started Cetus Manufacturing Module 8192 | -5/Cetus | Manufactured an Enhanced Grunt 8206 | -5/Cetus | Escorted A7 to Cetus Mainframe 8217 | -5/Cetus | Manufactured an Enhanced Grunt 8242 | -5/Cetus | Manufactured an Enhanced Grunt 8267 | -5/Cetus | Manufactured an Enhanced Grunt 8292 | -5/Cetus | Manufactured an Enhanced Grunt 8308 | -5/Cetus | Discovered new exit (range 23) 8343 | -5/Cetus | Spotted Cetus Guard 8343 | -5/Cetus | Spotted Cetus Guard 8346 | -5/Cetus | Spotted Cetus Guard 8346 | -5/Cetus | Spotted Cetus Guard 8346 | -5/Cetus | Discovered exit to Factory (range 19) 8356 | -5/Cetus | Allies destroyed Cetus Guard 8361 | -5/Cetus | Allies destroyed Cetus Guard 8363 | -5/Cetus | Allies destroyed Cetus Guard 8363 | -5/Cetus | Allies destroyed Cetus Guard 8373 | -5/Cetus | Met Revision 17 8391 | -5/Cetus | Identified exit to Archives 8542 | -5/Cetus | Found Prototype Device 8542 | -5/Cetus | Identified Exp. Thermal Shield 8598 | -5/Cetus | Crushed by falling debris 8657 | -5/Cetus | Found a strange terminal 8745 | -5/Cetus | Entered Archives 8745 | -5/Archives | Accompanied by 7 allies 8747 | -5/Archives | Discovered new exit (range 24) 8749 | -5/Archives | Discovered exit to Factory (range 23) 8750 | -5/Archives | Received a hacking code to weaken MAIN.C 8773 | -5/Archives | Reached level 24 8780 | -5/Archives | Unable to access archive contents 8782 | -5/Archives | Discovered new exit (range 20) 8783 | -5/Archives | Unable to access archive contents 8783 | -5/Archives | Unable to access archive contents 8786 | -5/Archives | Unable to access archive contents 8803 | -5/Archives | Identified exit to Hub_04(d) 8843 | -5/Archives | Entered Hub_04(d) 8843 | -5/Hub_04(d) | Accompanied by 5 allies 8848 | -5/Hub_04(d) | Discovered exit to Factory (range 20) 8908 | -5/Hub_04(d) | Garrison activated, responded to threat 8923 | -5/Hub_04(d) | Identified exit to Garrison 8981 | -5/Hub_04(d) | Entered Garrison 8981 | -5/Garrison | Accompanied by 5 allies 8999 | -5/Garrison | Phase Generator disabled 9095 | -5/Garrison | Triggered checkpoint 9099 | -5/Garrison | Triggered checkpoint 9166 | -5/Garrison | Discovered exit to Factory (range 10) 9191 | -5/Garrison | Garrison Relay disabled 9194 | -5/Garrison | Discovered exit to Factory (range 22) 9202 | -5/Garrison | Triggered checkpoint 9246 | -5/Garrison | Triggered checkpoint 9258 | -5/Garrison | Garrison Relay disabled 9269 | -5/Garrison | Discovered exit to Factory (range 8) 9290 | -5/Garrison | Expanded RIF knowledge: Autooverride 9296 | -5/Garrison | Entered Factory 9296 | -4/Factory | Accompanied by 4 allies 9298 | -4/Factory | Reached level 25 9326 | -4/Factory | Spotted B-86 Titan 9345 | -4/Factory | Identified exit to Garrison 9360 | -4/Factory | Entered Garrison 9360 | -4/Garrison | Accompanied by 4 allies 9406 | -4/Garrison | Spotted B-86 Titan 9417 | -4/Garrison | Core integrity fell below 50% 9418 | -4/Garrison | Triggered checkpoint 9418 | -4/Garrison | Triggered checkpoint 9426 | -4/Garrison | Triggered checkpoint 9430 | -4/Garrison | Core integrity fell below 20% 9436 | -4/Garrison | Destroyed B-86 Titan 9457 | -4/Garrison | Destroyed 12 combat bots 9492 | -4/Garrison | Discovered new exit (range 24) 9502 | -4/Garrison | Phase Generator disabled 9502 | -4/Garrison | Reached level 26 9538 | -4/Garrison | Identified exit to Research 9587 | -4/Garrison | Discovered exit to Research (range 16) 9664 | -4/Garrison | Discovered exit to Research (range 5) 9671 | -4/Garrison | Expanded RIF knowledge: Program Shield 9692 | -4/Garrison | Entered Research 9692 | -3/Research | Accompanied by 2 allies 9693 | -3/Research | Core integrity fell below 50% 9694 | -3/Research | Reached level 27 9732 | -3/Research | Found Antimissile System 9927 | -3/Research | Identified exit to Research 9944 | -3/Research | Garrison activated, responded to threat 9949 | -3/Research | Core integrity fell below 20% 9964 | -3/Research | Spotted B-86 Titan 10038 | -3/Research | Discovered new exit (range 24) 10055 | -3/Research | Found Fusion Bomb Launcher 10061 | -3/Research | Destroyed by Y-72 Warden with Quantum Rifle Last Messages --------------- Acquired 13 matter. Connecting with Terminal... >>Trojan(Botnet) Trojan loaded successfully. Testing... Terminal linked with 3 systems. Awaiting botnet instructions. Dropped Impulse Thruster. Acquired Gyrokinetic Inverter. EXIT=FOUND Dropped Gyrokinetic Inverter. Acquired Impulse Thruster. Dropped Imp. Powered Armor. Acquired Imp. Field Recycling Unit. Dropped Imp. Field Recycling Unit. Acquired Imp. Powered Armor. Dropped Hvy. Gauss Cannon. Acquired Fusion Bomb Launcher. [Achievement: 20k Club] [Achievement: 30k Club] Map ----- +----------------------------------------------------+ | ????????????????????????????????#?????????? ? ??+? | | ?????????????????????????????##?? ??? ? # ?? #? | | ??????????????????????##???#???############ ?? | | ????????????????? ??????? ? ############ ? ## | | ????????????????????? ####?+?? ####?####?# ? ? # | | ????????????? ???##??#?? ? # ########### ? | | ?????????????????????##? ? ######?#?## # | | ???????????????????? ?# # ########### + | | ??????????????? ?? ?#? # ## ### ?# | | ??????????+?##???# ##?##### #? ##? # | | ?????????? ??? ? # ? ##?#### ? #?# # | | ???????? ??? #? ? + + ##### ### | | ????????? ? ??? # #?#####? # ? ?##### ### | | ?????????###?# ?# ######## ?# ##### ### | | ???????#?????? ?# ?####### ############# ### | | ????????????#? ?# ? ?######## ############# ## | | ??????????#?##? #######Y##### ?#?###?##### # | | ??????????#?? ???### = #### #####?###### "" # | | ???????????"?? ???"# +? ? T + | | ??????##???# ? ?? ?## ####+############ # | | ???????????"" ? ? ??"# # ### # # | | ???????#??##? ????## !! # ### ### #### | | ????? ?????"?? ? ?"?# !! # ### ### #### | | ???? ??????# ??? ? ### !! # ### ### | | ?????????#?#?" ? ??### # ] ##; = R ; # #### | | ??????#??##?"? < ""### @; ; #! !### #### | | ???????#?##?" ?? "####################+##### ##?# | | ???????#??#??""" ""### ########### #### | | ?????????#??"?"?"""### + #### | | ???? ? ????##?#????#?? ?# + | | ????????????##?#?##### # w ###+#### | | ???????#???#?????##??# # # # | | ????? ??#??#??##?########## # ? ?# | | ????????????###???#?#######? # # | | ?????????? ? ? ? ? ?#? ? # | | ?????? ??#??##### ######## # ? ? # | | ??????? ??#?#??### ?? ?######## ?? # | | ????????????#?#??# ? ######## ######## | | ????????? #??#??## ####?###### # # ? #?###### | | ???????? ?????#?#?? ###? # # ?####### | | ???????????#????#? ?? ?#?## # ? ?+ ? ##?##### | | ?????????????????? # ? #### ? ##?######### | | ??????????????#### # ? #?#??# ? ? ############ | | ??????????????? ????? ???##?# ? ############ | | ????????????????????? ? ###? ####?###??######### | | ???????????????? ????+???#?### ### ############### | | ???????????????? ????? ?? ?## ?############## | | ??????????????????????????####?############ | | ????????????????????????#?#?#? #?? ? #### | | ????????????????????????????#??????????#?## | +----------------------------------------------------+ Best States ------------- Heat Dissipation 73 Energy Generation 54 Energy Capacity 550 Matter Stores 400 Matter Capacity 500 Sight Range 20 Robot Scan Range 14 Terrain Scan Range 24 Terrain Scan Density 610 Armor Coverage 400 Resistance: KI 40 Resistance: TH 40 Resistance: EX 40 Resistance: EM 20 Resistance: I 20 Resistance: S 20 Resistance: P 20 Evasion (%) 65 Armor Integrity Analysis 50 Offensive Hacking 39 Defensive Hacking 27 Item Schematics ----------------- Imp. Terrain Scanner | -9/Materials | Scanalyzed Particle Cannon | -9/Materials | Scanalyzed Grenade Launcher | -9/Materials | Scanalyzed Flight Unit | -9/Materials | Scanalyzed Nuclear Pulse Thruster | -7/Factory | Hacked Gatling Laser | -7/Factory | Hacked Remote Datajack | -6/Factory | Scanalyzed Energy Mantle | -5/Factory | Hacked Hyp. Mass Driver | -5/Factory | Hacked Cld. VTOL Module | -5/Factory | Scanalyzed Hvy. Phase Cannon | -5/Hub_04(d) | Hacked Particle Reactor | -5/Hub_04(d) | Hacked Imp. Remote Datajack | -3/Research | Scanalyzed Power Sword | -3/Research | Scanalyzed Lgt. Antimatter Reactor | -3/Research | Scanalyzed Enh. Nova Cannon | -3/Research | Hacked Robot Schematics ------------------ Y-54 Guardian | -5/Hub_04(d) | Hacked Fabricated ------------ A-02 Transporter | x1 | -7/Factory | Preloaded A-02 Transporter | x1 | -7/Factory | Preloaded Remote Datajack | x1 | -6/Factory Nuclear Pulse Thruster | x2 | -5/Factory Particle Reactor | x2 | -5/Factory | Preloaded Field Propulsion Drive | x2 | -5/Factory | Preloaded Alien Tech Used ----------------- None Achievements -------------- 20k Club 30k Club Collateral Damage Dramatic Entrance Main Advantage Maximum Efficiency Prison Break Project G-00 Revising The Future Challenges ------------ None RPGLIKE | -11 -10 -9 -9 -9 -9 -7 -7 -6 -6 -6 -5 -5 -5 -5 -5 -5 -5 -5 -4 -4 -3 --------- Run | Scr Mat Mat Sto Gar Rec Fac Gar Fac Low Low Fac Gar Fac Ext Cet Arc Hub Gar Fac Gar Res Levels Raised 26 | . 1 3 1 3 1 2 3 3 . . 1 2 1 1 . 1 . . 1 1 1 XP Earned 43529 | 4000 1740 5013 2115 3656 1062 3511 4621 4364 511 244 1500 2620 692 1582 1047 293 504 810 734 1071 1839 XP Spent 42870 | 3975 1470 4450 1570 4480 1500 2920 4400 4730 . . . 4500 1400 . 1500 . 1600 . 1460 1540 1375 Upgrades 108 | 23 7 12 6 9 3 5 8 9 . . . 7 1 . 2 . 3 . 5 5 3 Power Slot 1 | . . . . . . 1 . . . . . . . . . . . . . . . Propulsion Slot 4 | . . 1 . 1 . . . 1 . . . . 1 . . . . . . . . Utility Slot 6 | . . 2 . 1 . 1 1 . . . . 1 . . . . . . . . . Weapon Slot 2 | . . 1 . . . 1 . . . . . . . . . . . . . . . Core Integrity 17 | 8 . . 2 . . . 1 . . . . . . . . . . . 1 4 1 Heat Dissipation 8 | 2 . . . 1 . 1 . 3 . . . . . . . . . . . . 1 Energy Generation 4 | 1 . 1 . 1 . . 1 . . . . . . . . . . . . . . Energy Storage 4 | 2 . . . 1 . . 1 . . . . . . . . . . . . . . Matter Storage 4 | . 1 . . . . . . . . . . 1 . . . . . . 2 . . Mass Support 6 | 1 . 1 . 1 . . 2 . . . . 1 . . . . . . . . . Inventory Capacity 5 | 1 1 . . 1 . . . 1 . . . . . . . . 1 . . . . Sight Range 4 | 2 . . . . . . . 1 . . . . . . 1 . . . . . . Sensor Range 7 | 1 . 3 . . . . 1 . . . . 1 . . . . 1 . . . . Terrain Scan Density 6 | 1 1 . . 1 . 1 . 1 . . . . . . . . 1 . . . . Ranged Accuracy 7 | . . 1 . . 1 . . . . . . 2 . . 1 . . . . 1 1 Melee Accuracy 1 | . . . . . . . . . . . . . . . . . . . 1 . . Hack Attack % 3 | . 1 . . . 2 . . . . . . . . . . . . . . . . Hack Defense % 3 | . . 2 . . . . . 1 . . . . . . . . . . . . . KI Resistance % 4 | . 1 . 2 . . . . 1 . . . . . . . . . . . . . TH Resistance % 4 | 4 . . . . . . . . . . . . . . . . . . . . . EX Resistance % 4 | . 1 . 2 1 . . . . . . . . . . . . . . . . . KI Damage % 1 | . . . . . . . . . . . . 1 . . . . . . . . . TH Damage % 1 | . . . . . . . 1 . . . . . . . . . . . . . . EX Damage % 2 | . 1 . . . . . . . . . . . . . . . . . 1 . . Protomatter Created 2521 | . 65 246 132 252 27 19 577 103 42 . . 105 184 400 130 . . 33 . 137 69 Integrity Restored 4307 | . 125 218 309 286 5 48 533 261 6 . . 333 366 958 529 . . 114 . 144 72 Core 3858 | . 117 205 309 242 . 48 387 261 6 . . 333 366 749 505 . . 114 . 144 72 Parts 449 | . 8 13 . 44 5 . 146 . . . . . . 209 24 . . . . . . Protomatter Decayed 1598 | . . 127 2 116 17 3 368 210 22 . . 88 43 175 92 7 47 4 . 54 223 Game ------ Seed PhaseNeutralizingPerforator Manual? 0 Play Time 04:41:14 Cumulative 46.7 hours Start 2020.01.03 @ 12:58:20 End 2020.01.03 @ 19:19:14 Sessions 1 Manual Loads 0 Difficulty Adventurer Special Mode Winter2019/RPGLIKE Game No. 56 Rogue 49 Adventurer 7 Explorer 0 Win Type - Total 0 Types 0/0/0/0/0/0/0 Lore% 40 Gallery% 48 Achievement% 39 Wizard Run 0 Options --------- ASCII 0 Keyboard 0 Movement Mouse Keybinds 0 Fullscreen 1 Font 18/SmallcapsGlow Map View 76x50 Tactical HUD 0 Map Filters NONE Filters NONE Steam 1 RUN: 9e21f3db-4dc2-4aa8-ac8f-73929b51b816